[Event "Titled Tuesday Blitz August 22 Late 2023"]
[White "Swicarz, Maciej"]
[Black "Feliz Dotel, Dewar Bienvenido"]
[WhiteFideId "1113585"]
[BlackFideId "6402801"]
[WhiteElo "2510"]
[BlackElo "2180"]
[Result "1-0"]
[Round "5"]
[TimeControl "180+1"]
[Date "2023.08.22"]
[WhiteClock "0:00:09"]
[BlackClock "0:00:00"]
[Board "130"]

1. e4 {[%clk 0:03:00]}  e5 {[%clk 0:02:59]} 2. Nf3 {[%clk 0:03:00]}  Nc6 {[%clk 0:02:59]} 3. c3 {[%clk 0:03:00]}  Nf6 {[%clk 0:02:58]} 4. d4 {[%clk 0:03:00]}  Nxe4 {[%clk 0:02:56]} 5. d5 {[%clk 0:02:59]}  Nb8 {[%clk 0:02:50]} 6. Nxe5 {[%clk 0:02:56]}  Qe7 {[%clk 0:02:32]} 7. Qd4 {[%clk 0:02:55]}  Nf6 {[%clk 0:02:19]} 8. Be2 {[%clk 0:02:53]}  d6 {[%clk 0:02:17]} 9. Nf3 {[%clk 0:02:53]}  c5 {[%clk 0:02:12]} 10. dxc6 {[%clk 0:02:46]}  Nxc6 {[%clk 0:02:11]} 11. Qa4 {[%clk 0:02:41]}  Bd7 {[%clk 0:02:12]} 12. Qb3 {[%clk 0:02:39]}  Bg4 {[%clk 0:01:35]} 13. O-O {[%clk 0:02:25]}  Qd7 {[%clk 0:01:24]} 14. Be3 {[%clk 0:02:18]}  Be7 {[%clk 0:01:21]} 15. Nbd2 {[%clk 0:02:01]}  O-O {[%clk 0:01:21]} 16. h3 {[%clk 0:01:53]}  Bh5 {[%clk 0:01:17]} 17. Rad1 {[%clk 0:01:47]}  Qc7 {[%clk 0:01:08]} 18. Bf4 {[%clk 0:01:45]}  Ne5 {[%clk 0:01:01]} 19. Rfe1 {[%clk 0:01:41]}  Rfe8 {[%clk 0:00:41]} 20. Bg3 {[%clk 0:01:26]}  Rad8 {[%clk 0:00:34]} 21. Nxe5 {[%clk 0:01:21]}  dxe5 {[%clk 0:00:31]} 22. Bxh5 {[%clk 0:01:19]}  Nxh5 {[%clk 0:00:31]} 23. Bxe5 {[%clk 0:01:19]}  Qc6 {[%clk 0:00:26]} 24. Nf3 {[%clk 0:01:13]}  Bd6 {[%clk 0:00:22]} 25. Bxd6 {[%clk 0:01:10]}  Rxe1+ {[%clk 0:00:23]} 26. Nxe1 {[%clk 0:01:03]}  Rxd6 {[%clk 0:00:23]} 27. Rxd6 {[%clk 0:01:03]}  Qxd6 {[%clk 0:00:24]} 28. Qxb7 {[%clk 0:01:03]}  h6 {[%clk 0:00:23]} 29. Qxa7 {[%clk 0:00:56]}  Nf4 {[%clk 0:00:21]} 30. Qe3 {[%clk 0:00:53]}  Qb8 {[%clk 0:00:14]} 31. b3 {[%clk 0:00:51]}  Ne6 {[%clk 0:00:14]} 32. c4 {[%clk 0:00:49]}  Qa8 {[%clk 0:00:14]} 33. Qd2 {[%clk 0:00:47]}  Qe4 {[%clk 0:00:13]} 34. Nf3 {[%clk 0:00:45]}  Nf4 {[%clk 0:00:13]} 35. Qe3 {[%clk 0:00:39]}  Qb1+ {[%clk 0:00:10]} 36. Kh2 {[%clk 0:00:39]}  g5 {[%clk 0:00:10]} 37. g3 {[%clk 0:00:34]}  Ng6 {[%clk 0:00:09]} 38. Qe2 {[%clk 0:00:31]}  Qa1 {[%clk 0:00:06]} 39. c5 {[%clk 0:00:28]}  Qc3 {[%clk 0:00:06]} 40. Qe3 {[%clk 0:00:26]}  Qc2 {[%clk 0:00:06]} 41. b4 {[%clk 0:00:17]}  Qxa2 {[%clk 0:00:06]} 42. b5 {[%clk 0:00:17]}  Qd5 {[%clk 0:00:06]} 43. b6 {[%clk 0:00:15]}  f5 {[%clk 0:00:06]} 44. Nd4 {[%clk 0:00:11]}  f4 {[%clk 0:00:05]} 45. Qe6+ {[%clk 0:00:10]}  Qxe6 {[%clk 0:00:05]} 46. Nxe6 {[%clk 0:00:11]}  fxg3+ {[%clk 0:00:05]} 47. fxg3 {[%clk 0:00:12]}  Kf7 {[%clk 0:00:06]} 48. b7 {[%clk 0:00:11]}  Kxe6 {[%clk 0:00:03]} 49. b8=Q {[%clk 0:00:11]}  Ne7 {[%clk 0:00:03]} 50. Qe8 {[%clk 0:00:10]}  Kf6 {[%clk 0:00:03]} 51. Qf8+ {[%clk 0:00:09]}  Ke6 {[%clk 0:00:02]} 52. Qxh6+ {[%clk 0:00:09]}  Kd5 {[%clk 0:00:02]} 53. Qxg5+ {[%clk 0:00:10]}  Kc6 {[%clk 0:00:00]} 54. Qxe7 {[%clk 0:00:09]} 1-0


[Site "https://www.chess.com"]

[Event "Titled Tuesday Blitz August 22 Late 2023"]
[White "Koziorowicz, Michal"]
[Black "Kula, Robert"]
[WhiteFideId "21809194"]
[BlackFideId "1101218"]
[WhiteElo "2658"]
[BlackElo "2152"]
[Result "1-0"]
[Round "5"]
[TimeControl "180+1"]
[Date "2023.08.22"]
[WhiteClock "0:00:10"]
[BlackClock "0:00:13"]
[Board "134"]

1. d4 {[%clk 0:03:00]}  d5 {[%clk 0:02:59]} 2. c4 {[%clk 0:03:00]}  c6 {[%clk 0:02:59]} 3. Nf3 {[%clk 0:03:00]}  Nf6 {[%clk 0:03:00]} 4. Nc3 {[%clk 0:02:59]}  dxc4 {[%clk 0:03:00]} 5. a4 {[%clk 0:02:55]}  Bf5 {[%clk 0:02:58]} 6. e3 {[%clk 0:02:49]}  e6 {[%clk 0:02:41]} 7. Bxc4 {[%clk 0:02:49]}  Be7 {[%clk 0:02:41]} 8. O-O {[%clk 0:02:48]}  O-O {[%clk 0:02:41]} 9. b3 {[%clk 0:02:47]}  Nbd7 {[%clk 0:02:41]} 10. Bb2 {[%clk 0:02:48]}  Ne4 {[%clk 0:02:39]} 11. Nxe4 {[%clk 0:02:42]}  Bxe4 {[%clk 0:02:39]} 12. Bd3 {[%clk 0:02:42]}  Nf6 {[%clk 0:02:36]} 13. Rc1 {[%clk 0:02:40]}  Qd5 {[%clk 0:02:26]} 14. Ne1 {[%clk 0:02:25]}  Rfd8 {[%clk 0:02:16]} 15. f3 {[%clk 0:02:21]}  Bxd3 {[%clk 0:01:39]} 16. Nxd3 {[%clk 0:02:22]}  Rac8 {[%clk 0:01:38]} 17. Nc5 {[%clk 0:02:02]}  b6 {[%clk 0:00:59]} 18. e4 {[%clk 0:01:45]}  Qh5 {[%clk 0:00:54]} 19. Nd3 {[%clk 0:01:36]}  Qh6 {[%clk 0:00:49]} 20. Qe2 {[%clk 0:01:27]}  Nh5 {[%clk 0:00:43]} 21. g3 {[%clk 0:01:10]}  Bd6 {[%clk 0:00:37]} 22. f4 {[%clk 0:01:01]}  f5 {[%clk 0:00:28]} 23. e5 {[%clk 0:00:59]}  Be7 {[%clk 0:00:28]} 24. Rc2 {[%clk 0:00:56]}  g5 {[%clk 0:00:27]} 25. Qf3 {[%clk 0:00:23]}  gxf4 {[%clk 0:00:26]} 26. Nxf4 {[%clk 0:00:23]}  Nxf4 {[%clk 0:00:25]} 27. Qxf4 {[%clk 0:00:23]}  Bg5 {[%clk 0:00:25]} 28. Qf3 {[%clk 0:00:21]}  Be3+ {[%clk 0:00:24]} 29. Kh1 {[%clk 0:00:21]}  Bxd4 {[%clk 0:00:24]} 30. Bxd4 {[%clk 0:00:21]}  Rxd4 {[%clk 0:00:25]} 31. Rxc6 {[%clk 0:00:20]}  Rcd8 {[%clk 0:00:22]} 32. Qxf5 {[%clk 0:00:12]}  Qxh2+ {[%clk 0:00:19]} 33. Kxh2 {[%clk 0:00:12]}  exf5 {[%clk 0:00:20]} 34. Rxf5 {[%clk 0:00:13]}  Rd2+ {[%clk 0:00:20]} 35. Kh3 {[%clk 0:00:13]}  R2d3 {[%clk 0:00:20]} 36. Rc7 {[%clk 0:00:12]}  Rxb3 {[%clk 0:00:18]} 37. Rff7 {[%clk 0:00:13]}  Rdd3 {[%clk 0:00:18]} 38. Rg7+ {[%clk 0:00:13]}  Kf8 {[%clk 0:00:18]} 39. e6 {[%clk 0:00:09]}  h5 {[%clk 0:00:16]} 40. e7+ {[%clk 0:00:09]}  Kxg7 {[%clk 0:00:15]} 41. e8=Q+ {[%clk 0:00:09]}  Kf6 {[%clk 0:00:16]} 42. Rf7+ {[%clk 0:00:09]}  Kg5 {[%clk 0:00:14]} 43. Qg8+ {[%clk 0:00:10]}  Kh6 {[%clk 0:00:13]} 44. Rh7# {[%clk 0:00:10]} 1-0


[Site "https://www.chess.com"]

[Event "Titled Tuesday Blitz August 22 Late 2023"]
[White "Grebeniuk, Semen"]
[Black "kaanadayhamle"]
[WhiteFideId "14117509"]
[WhiteElo "2571"]
[BlackElo "2368"]
[Result "1-0"]
[Round "5"]
[TimeControl "180+1"]
[Date "2023.08.22"]
[WhiteClock "0:00:05"]
[BlackClock "0:00:05"]
[Board "137"]

1. d4 {[%clk 0:03:00]}  Nf6 {[%clk 0:02:59]} 2. Nf3 {[%clk 0:02:59]}  d5 {[%clk 0:02:57]} 3. c4 {[%clk 0:02:58]}  c6 {[%clk 0:02:57]} 4. cxd5 {[%clk 0:02:58]}  cxd5 {[%clk 0:02:58]} 5. Nc3 {[%clk 0:02:59]}  Nc6 {[%clk 0:02:58]} 6. Bf4 {[%clk 0:02:58]}  Bf5 {[%clk 0:02:55]} 7. e3 {[%clk 0:02:58]}  a6 {[%clk 0:02:45]} 8. Rc1 {[%clk 0:02:47]}  Qb6 {[%clk 0:02:28]} 9. Bd3 {[%clk 0:02:34]}  Bxd3 {[%clk 0:02:24]} 10. Qxd3 {[%clk 0:02:35]}  e6 {[%clk 0:02:25]} 11. O-O {[%clk 0:02:33]}  Be7 {[%clk 0:02:23]} 12. Na4 {[%clk 0:02:34]}  Qa5 {[%clk 0:02:21]} 13. Qb3 {[%clk 0:02:17]}  O-O {[%clk 0:01:53]} 14. Nb6 {[%clk 0:02:08]}  Rad8 {[%clk 0:01:52]} 15. Bc7 {[%clk 0:01:49]}  Bd6 {[%clk 0:01:40]} 16. Bxd8 {[%clk 0:01:39]}  Rxd8 {[%clk 0:01:41]} 17. Na4 {[%clk 0:01:30]}  Qc7 {[%clk 0:01:23]} 18. Nc5 {[%clk 0:01:28]}  Bxc5 {[%clk 0:01:23]} 19. Rxc5 {[%clk 0:01:26]}  Ne4 {[%clk 0:01:24]} 20. Rc2 {[%clk 0:01:27]}  g5 {[%clk 0:01:24]} 21. Ne5 {[%clk 0:01:21]}  h5 {[%clk 0:00:51]} 22. Rfc1 {[%clk 0:01:13]}  h4 {[%clk 0:00:40]} 23. Nxc6 {[%clk 0:01:10]}  bxc6 {[%clk 0:00:41]} 24. Rxc6 {[%clk 0:01:09]}  Qe7 {[%clk 0:00:42]} 25. Rc8 {[%clk 0:00:55]}  h3 {[%clk 0:00:40]} 26. gxh3 {[%clk 0:00:48]}  Rxc8 {[%clk 0:00:37]} 27. Rxc8+ {[%clk 0:00:48]}  Kg7 {[%clk 0:00:38]} 28. f3 {[%clk 0:00:45]}  Nd6 {[%clk 0:00:37]} 29. Rc2 {[%clk 0:00:45]}  Qf6 {[%clk 0:00:36]} 30. Rf2 {[%clk 0:00:32]}  Nf5 {[%clk 0:00:35]} 31. Qd3 {[%clk 0:00:32]}  Nh4 {[%clk 0:00:35]} 32. f4 {[%clk 0:00:20]}  Qd8 {[%clk 0:00:20]} 33. Qe2 {[%clk 0:00:17]}  gxf4 {[%clk 0:00:12]} 34. Rxf4 {[%clk 0:00:17]}  Ng6 {[%clk 0:00:13]} 35. Rg4 {[%clk 0:00:13]}  Qc7 {[%clk 0:00:14]} 36. h4 {[%clk 0:00:10]}  Qc1+ {[%clk 0:00:11]} 37. Kg2 {[%clk 0:00:09]}  f5 {[%clk 0:00:10]} 38. Rg3 {[%clk 0:00:06]}  Kf6 {[%clk 0:00:11]} 39. h5 {[%clk 0:00:03]}  Ne7 {[%clk 0:00:08]} 40. Qf2 {[%clk 0:00:03]}  Qd1 {[%clk 0:00:04]} 41. Qf4 {[%clk 0:00:02]}  Qxh5 {[%clk 0:00:03]} 42. h4 {[%clk 0:00:03]}  Qe2+ {[%clk 0:00:03]} 43. Kh3 {[%clk 0:00:03]}  Ng6 {[%clk 0:00:03]} 44. Qg5+ {[%clk 0:00:03]}  Kf7 {[%clk 0:00:04]} 45. Qxg6+ {[%clk 0:00:03]}  Ke7 {[%clk 0:00:05]} 46. Qg7+ {[%clk 0:00:04]}  Kd6 {[%clk 0:00:06]} 47. Qe5+ {[%clk 0:00:04]}  Kc6 {[%clk 0:00:06]} 48. Qf4 {[%clk 0:00:05]}  Kb5 {[%clk 0:00:07]} 49. Rg2 {[%clk 0:00:05]}  Qe1 {[%clk 0:00:07]} 50. Kh2 {[%clk 0:00:05]}  Kc4 {[%clk 0:00:06]} 51. Qg3 {[%clk 0:00:06]}  Qe2 {[%clk 0:00:06]} 52. b3+ {[%clk 0:00:04]}  Kb4 {[%clk 0:00:05]} 53. Rxe2 {[%clk 0:00:05]} 1-0


[Site "https://www.chess.com"]

[Event "Titled Tuesday Blitz August 22 Late 2023"]
[White "Graif, William"]
[Black "Dubreuil, Julien"]
[WhiteFideId "2609835"]
[BlackFideId "621285"]
[WhiteElo "2513"]
[BlackElo "2348"]
[Result "1-0"]
[Round "5"]
[TimeControl "180+1"]
[Date "2023.08.22"]
[WhiteClock "0:00:19"]
[BlackClock "0:00:56"]
[Board "139"]

1. e4 {[%clk 0:02:51]}  c5 {[%clk 0:02:59]} 2. Nc3 {[%clk 0:02:50]}  Nc6 {[%clk 0:03:00]} 3. Bb5 {[%clk 0:02:49]}  Na5 {[%clk 0:03:00]} 4. Be2 {[%clk 0:02:39]}  Nc6 {[%clk 0:02:58]} 5. Bb5 {[%clk 0:02:26]}  Na5 {[%clk 0:02:58]} 6. Be2 {[%clk 0:02:12]}  Nc6 {[%clk 0:02:57]} 7. Nf3 {[%clk 0:02:12]}  Nd4 {[%clk 0:02:56]} 8. Nxd4 {[%clk 0:01:52]}  cxd4 {[%clk 0:02:56]} 9. Nb5 {[%clk 0:01:53]}  Qb6 {[%clk 0:02:52]} 10. c3 {[%clk 0:01:51]}  Nf6 {[%clk 0:02:47]} 11. e5 {[%clk 0:01:43]}  Ng4 {[%clk 0:02:36]} 12. cxd4 {[%clk 0:01:15]}  d6 {[%clk 0:02:00]} 13. Qa4 {[%clk 0:01:07]}  Bd7 {[%clk 0:01:57]} 14. Qb3 {[%clk 0:00:36]}  dxe5 {[%clk 0:01:47]} 15. Bxg4 {[%clk 0:00:30]}  Bxg4 {[%clk 0:01:13]} 16. dxe5 {[%clk 0:00:30]}  a6 {[%clk 0:01:10]} 17. Nd6+ {[%clk 0:00:30]}  Qxd6 {[%clk 0:01:03]} 18. exd6 {[%clk 0:00:29]}  exd6 {[%clk 0:01:02]} 19. Qxb7 {[%clk 0:00:25]}  Rd8 {[%clk 0:00:57]} 20. O-O {[%clk 0:00:22]}  Be7 {[%clk 0:00:57]} 21. Re1 {[%clk 0:00:20]}  Be6 {[%clk 0:00:58]} 22. d4 {[%clk 0:00:19]}  O-O {[%clk 0:00:56]} 23. Qxe7 {[%clk 0:00:19]} 1-0


[Site "https://www.chess.com"]

[Event "Titled Tuesday Blitz August 22 Late 2023"]
[White "Antonio, Jorge Carlos"]
[Black "Bilan, Danila"]
[WhiteFideId "113190"]
[BlackFideId "24161918"]
[WhiteElo "2310"]
[BlackElo "2488"]
[Result "0-1"]
[Round "5"]
[TimeControl "180+1"]
[Date "2023.08.22"]
[WhiteClock "0:00:51"]
[BlackClock "0:00:21"]
[Board "140"]

1. d4 {[%clk 0:03:00]}  d5 {[%clk 0:02:59]} 2. Nf3 {[%clk 0:03:00]}  Nf6 {[%clk 0:02:59]} 3. Bf4 {[%clk 0:02:59]}  c5 {[%clk 0:02:59]} 4. e3 {[%clk 0:02:59]}  Nc6 {[%clk 0:02:59]} 5. c3 {[%clk 0:02:58]}  Qb6 {[%clk 0:02:59]} 6. Qb3 {[%clk 0:02:56]}  c4 {[%clk 0:02:59]} 7. Qxb6 {[%clk 0:02:55]}  axb6 {[%clk 0:03:00]} 8. Nbd2 {[%clk 0:02:52]}  b5 {[%clk 0:02:58]} 9. Be2 {[%clk 0:02:52]}  b4 {[%clk 0:02:55]} 10. O-O {[%clk 0:02:51]}  h6 {[%clk 0:02:46]} 11. a3 {[%clk 0:02:50]}  bxc3 {[%clk 0:02:36]} 12. bxc3 {[%clk 0:02:47]}  Bf5 {[%clk 0:02:35]} 13. Ne5 {[%clk 0:02:41]}  e6 {[%clk 0:02:30]} 14. f3 {[%clk 0:02:39]}  Nxe5 {[%clk 0:02:24]} 15. Bxe5 {[%clk 0:02:39]}  Kd7 {[%clk 0:02:14]} 16. Bxf6 {[%clk 0:02:36]}  gxf6 {[%clk 0:02:15]} 17. e4 {[%clk 0:02:36]}  Bg6 {[%clk 0:02:12]} 18. f4 {[%clk 0:02:29]}  f5 {[%clk 0:02:07]} 19. e5 {[%clk 0:02:25]}  Bxa3 {[%clk 0:02:01]} 20. Rfb1 {[%clk 0:02:23]}  Kc7 {[%clk 0:01:52]} 21. Kf2 {[%clk 0:02:14]}  Be7 {[%clk 0:01:46]} 22. Rxa8 {[%clk 0:02:10]}  Rxa8 {[%clk 0:01:45]} 23. Rb2 {[%clk 0:02:10]}  Ra1 {[%clk 0:01:32]} 24. Bf3 {[%clk 0:02:07]}  b6 {[%clk 0:01:16]} 25. h3 {[%clk 0:01:58]}  Ba3 {[%clk 0:01:12]} 26. Rb1 {[%clk 0:01:48]}  Ra2 {[%clk 0:01:07]} 27. Ke3 {[%clk 0:01:46]}  Bb2 {[%clk 0:00:55]} 28. Rg1 {[%clk 0:01:21]}  Bxc3 {[%clk 0:00:53]} 29. Nb1 {[%clk 0:01:21]}  Bb2 {[%clk 0:00:41]} 30. g4 {[%clk 0:01:20]}  Ra3+ {[%clk 0:00:35]} 31. Ke2 {[%clk 0:01:17]}  Bxd4 {[%clk 0:00:31]} 32. gxf5 {[%clk 0:01:17]}  Ra2+ {[%clk 0:00:28]} 33. Kf1 {[%clk 0:01:15]}  Bxf5 {[%clk 0:00:26]} 34. Rg7 {[%clk 0:01:12]}  Rf2+ {[%clk 0:00:24]} 35. Ke1 {[%clk 0:01:11]}  Rxf3 {[%clk 0:00:24]} 36. Rxf7+ {[%clk 0:01:12]}  Kc6 {[%clk 0:00:25]} 37. Nd2 {[%clk 0:01:10]}  Bc3 {[%clk 0:00:22]} 38. Ke2 {[%clk 0:01:09]}  Rxh3 {[%clk 0:00:20]} 39. Nf1 {[%clk 0:01:06]}  Bd3+ {[%clk 0:00:20]} 40. Kf2 {[%clk 0:01:05]}  Bd4+ {[%clk 0:00:18]} 41. Kg2 {[%clk 0:01:06]}  Bxf1+ {[%clk 0:00:19]} 42. Kxf1 {[%clk 0:01:05]}  c3 {[%clk 0:00:19]} 43. Rf6 {[%clk 0:01:04]}  c2 {[%clk 0:00:19]} 44. Rxe6+ {[%clk 0:01:02]}  Kc5 {[%clk 0:00:19]} 45. Kg2 {[%clk 0:00:58]}  Re3 {[%clk 0:00:18]} 46. Re8 {[%clk 0:00:57]}  Kc4 {[%clk 0:00:18]} 47. Rc8+ {[%clk 0:00:57]}  Bc5 {[%clk 0:00:19]} 48. f5 {[%clk 0:00:51]}  c1=Q {[%clk 0:00:19]} 49. e6 {[%clk 0:00:51]}  Qd2+ {[%clk 0:00:20]} 50. Kh1 {[%clk 0:00:51]}  Re1# {[%clk 0:00:21]} 0-1


[Site "https://www.chess.com"]

[Event "Titled Tuesday Blitz August 22 Late 2023"]
[White "GAO"]
[Black "The_Straightforward_Rook"]
[WhiteElo "2276"]
[BlackElo "2461"]
[Result "1-0"]
[Round "5"]
[TimeControl "180+1"]
[Date "2023.08.22"]
[WhiteClock "0:00:16"]
[BlackClock "0:00:14"]
[Board "141"]

1. e4 {[%clk 0:03:00]}  e5 {[%clk 0:02:58]} 2. Nf3 {[%clk 0:02:59]}  Nc6 {[%clk 0:02:59]} 3. Bc4 {[%clk 0:02:59]}  Bc5 {[%clk 0:02:59]} 4. c3 {[%clk 0:02:58]}  Nf6 {[%clk 0:02:58]} 5. d3 {[%clk 0:02:58]}  a6 {[%clk 0:02:57]} 6. O-O {[%clk 0:02:58]}  Ba7 {[%clk 0:02:55]} 7. Re1 {[%clk 0:02:56]}  h6 {[%clk 0:02:54]} 8. d4 {[%clk 0:02:49]}  d6 {[%clk 0:02:48]} 9. a4 {[%clk 0:02:47]}  Bg4 {[%clk 0:02:46]} 10. Be3 {[%clk 0:02:31]}  O-O {[%clk 0:02:32]} 11. d5 {[%clk 0:02:24]}  Bxe3 {[%clk 0:02:28]} 12. Rxe3 {[%clk 0:02:25]}  Ne7 {[%clk 0:02:27]} 13. h3 {[%clk 0:02:22]}  Bd7 {[%clk 0:02:24]} 14. b4 {[%clk 0:02:20]}  Ng6 {[%clk 0:02:23]} 15. Nbd2 {[%clk 0:02:16]}  Nh7 {[%clk 0:02:23]} 16. Bd3 {[%clk 0:02:15]}  Nf4 {[%clk 0:02:22]} 17. Bc2 {[%clk 0:02:15]}  g5 {[%clk 0:02:16]} 18. Nf1 {[%clk 0:02:07]}  g4 {[%clk 0:02:05]} 19. hxg4 {[%clk 0:02:06]}  Bxg4 {[%clk 0:02:06]} 20. N1h2 {[%clk 0:02:01]}  Qd7 {[%clk 0:02:03]} 21. Qf1 {[%clk 0:01:49]}  Bh5 {[%clk 0:02:00]} 22. Nh4 {[%clk 0:01:44]}  Kh8 {[%clk 0:01:51]} 23. Nf5 {[%clk 0:01:44]}  Rg8 {[%clk 0:01:50]} 24. Rg3 {[%clk 0:01:42]}  Ne2+ {[%clk 0:01:33]} 25. Kh1 {[%clk 0:01:42]}  Nxg3+ {[%clk 0:01:32]} 26. fxg3 {[%clk 0:01:43]}  Rg6 {[%clk 0:01:28]} 27. Nh4 {[%clk 0:01:28]}  Rxg3 {[%clk 0:01:25]} 28. Nf5 {[%clk 0:01:26]}  Rg6 {[%clk 0:01:23]} 29. Qf2 {[%clk 0:01:26]}  Rag8 {[%clk 0:01:22]} 30. Qh4 {[%clk 0:01:24]}  Nf6 {[%clk 0:01:09]} 31. Rg1 {[%clk 0:01:15]}  Kh7 {[%clk 0:00:59]} 32. g4 {[%clk 0:01:13]}  Bxg4 {[%clk 0:00:50]} 33. Nxg4 {[%clk 0:01:12]}  Nxg4 {[%clk 0:00:50]} 34. Rxg4 {[%clk 0:01:11]}  Qe8 {[%clk 0:00:26]} 35. Bd1 {[%clk 0:01:01]}  Qf8 {[%clk 0:00:25]} 36. Rxg6 {[%clk 0:00:55]}  Rxg6 {[%clk 0:00:26]} 37. Bh5 {[%clk 0:00:55]}  Rg5 {[%clk 0:00:27]} 38. Bxf7 {[%clk 0:00:48]}  Rxf5 {[%clk 0:00:24]} 39. exf5 {[%clk 0:00:36]}  Qxf7 {[%clk 0:00:24]} 40. Qg4 {[%clk 0:00:32]}  Qxd5+ {[%clk 0:00:23]} 41. Kh2 {[%clk 0:00:30]}  Qd2+ {[%clk 0:00:22]} 42. Kh1 {[%clk 0:00:27]}  Qg5 {[%clk 0:00:20]} 43. Qe4 {[%clk 0:00:27]}  Qf4 {[%clk 0:00:19]} 44. Qxb7 {[%clk 0:00:25]}  Qxf5 {[%clk 0:00:19]} 45. Qxc7+ {[%clk 0:00:24]}  Kg6 {[%clk 0:00:18]} 46. Qxd6+ {[%clk 0:00:24]}  Qf6 {[%clk 0:00:18]} 47. Qxf6+ {[%clk 0:00:20]}  Kxf6 {[%clk 0:00:19]} 48. a5 {[%clk 0:00:17]}  Kf5 {[%clk 0:00:18]} 49. b5 {[%clk 0:00:17]}  axb5 {[%clk 0:00:17]} 50. a6 {[%clk 0:00:18]}  e4 {[%clk 0:00:18]} 51. a7 {[%clk 0:00:18]}  e3 {[%clk 0:00:18]} 52. Kg2 {[%clk 0:00:16]}  e2 {[%clk 0:00:19]} 53. Kf2 {[%clk 0:00:17]}  e1=Q+ {[%clk 0:00:20]} 54. Kxe1 {[%clk 0:00:17]}  Ke4 {[%clk 0:00:21]} 55. a8=Q+ {[%clk 0:00:17]}  Kd3 {[%clk 0:00:22]} 56. Qc6 {[%clk 0:00:17]}  Kc2 {[%clk 0:00:14]} 57. Qc5 {[%clk 0:00:16]} 1-0


[Site "https://www.chess.com"]

[Event "Titled Tuesday Blitz August 22 Late 2023"]
[White "KSho99"]
[Black "Pinto, Daniel"]
[BlackFideId "3303144"]
[WhiteElo "2226"]
[BlackElo "2437"]
[Result "0-1"]
[Round "5"]
[TimeControl "180+1"]
[Date "2023.08.22"]
[WhiteClock "0:00:00"]
[BlackClock "0:00:02"]
[Board "142"]

1. Nf3 {[%clk 0:03:00]}  c5 {[%clk 0:02:59]} 2. Nc3 {[%clk 0:02:58]}  Nc6 {[%clk 0:02:59]} 3. d4 {[%clk 0:02:57]}  cxd4 {[%clk 0:02:56]} 4. Nxd4 {[%clk 0:02:58]}  Nf6 {[%clk 0:02:56]} 5. g3 {[%clk 0:02:55]}  e5 {[%clk 0:02:54]} 6. Ndb5 {[%clk 0:02:38]}  d6 {[%clk 0:02:29]} 7. Bg2 {[%clk 0:02:36]}  Be7 {[%clk 0:02:28]} 8. Bg5 {[%clk 0:02:32]}  a6 {[%clk 0:02:20]} 9. Bxf6 {[%clk 0:02:22]}  gxf6 {[%clk 0:02:16]} 10. Na3 {[%clk 0:02:19]}  h5 {[%clk 0:02:07]} 11. h4 {[%clk 0:02:17]}  f5 {[%clk 0:02:07]} 12. Nc4 {[%clk 0:02:11]}  Be6 {[%clk 0:02:04]} 13. Nd5 {[%clk 0:01:55]}  f4 {[%clk 0:01:54]} 14. gxf4 {[%clk 0:01:32]}  exf4 {[%clk 0:01:46]} 15. Qd2 {[%clk 0:01:12]}  Rg8 {[%clk 0:00:40]} 16. Bf3 {[%clk 0:01:01]}  Ne5 {[%clk 0:00:32]} 17. Nxe5 {[%clk 0:00:42]}  dxe5 {[%clk 0:00:32]} 18. O-O-O {[%clk 0:00:38]}  Kf8 {[%clk 0:00:14]} 19. Qc3 {[%clk 0:00:17]}  Rc8 {[%clk 0:00:09]} 20. Qxe5 {[%clk 0:00:15]}  Bxh4 {[%clk 0:00:09]} 21. Qxh5 {[%clk 0:00:07]}  Bf6 {[%clk 0:00:03]} 22. Nxf4 {[%clk 0:00:04]}  Qc7 {[%clk 0:00:03]} 23. Nxe6+ {[%clk 0:00:03]}  fxe6 {[%clk 0:00:03]} 24. Qh6+ {[%clk 0:00:03]}  Bg7 {[%clk 0:00:03]} 25. Qd2 {[%clk 0:00:03]}  Qb6 {[%clk 0:00:03]} 26. Qd6+ {[%clk 0:00:03]}  Qxd6 {[%clk 0:00:03]} 27. Rxd6 {[%clk 0:00:04]}  Ke7 {[%clk 0:00:03]} 28. Rb6 {[%clk 0:00:03]}  Rc7 {[%clk 0:00:03]} 29. Rxb7 {[%clk 0:00:03]}  Rxb7 {[%clk 0:00:03]} 30. Bxb7 {[%clk 0:00:04]}  a5 {[%clk 0:00:04]} 31. Rh7 {[%clk 0:00:03]}  Kd6 {[%clk 0:00:04]} 32. Be4 {[%clk 0:00:03]}  Bd4 {[%clk 0:00:04]} 33. e3 {[%clk 0:00:02]}  Rg1+ {[%clk 0:00:05]} 34. Kd2 {[%clk 0:00:03]}  Bxb2 {[%clk 0:00:05]} 35. Rb7 {[%clk 0:00:02]}  Ba3 {[%clk 0:00:05]} 36. Rb6+ {[%clk 0:00:02]}  Ke7 {[%clk 0:00:05]} 37. Bd3 {[%clk 0:00:03]}  Ra1 {[%clk 0:00:03]} 38. Ra6 {[%clk 0:00:02]}  Rxa2 {[%clk 0:00:03]} 39. Bc4 {[%clk 0:00:01]}  Bb4+ {[%clk 0:00:03]} 40. Kd3 {[%clk 0:00:01]}  Ra3+ {[%clk 0:00:04]} 41. Kd4 {[%clk 0:00:01]}  Bc3+ {[%clk 0:00:02]} 42. Kc5 {[%clk 0:00:00]}  e5 {[%clk 0:00:02]} 0-1


[Site "https://www.chess.com"]

[Event "Titled Tuesday Blitz August 22 Late 2023"]
[White "Nielsen, Viktor Haarmark"]
[Black "Florianovitz, Derlei Alex"]
[WhiteFideId "1444492"]
[BlackFideId "2114178"]
[WhiteElo "2428"]
[BlackElo "2210"]
[Result "0-1"]
[Round "5"]
[TimeControl "180+1"]
[Date "2023.08.22"]
[WhiteClock "0:01:36"]
[BlackClock "0:01:43"]
[Board "143"]

1. d4 {[%clk 0:02:49]}  Nf6 {[%clk 0:02:59]} 2. c4 {[%clk 0:02:49]}  e6 {[%clk 0:02:59]} 3. Nc3 {[%clk 0:02:50]}  Bb4 {[%clk 0:02:59]} 4. e3 {[%clk 0:02:42]}  c5 {[%clk 0:02:58]} 5. Bd2 {[%clk 0:02:39]}  d6 {[%clk 0:02:53]} 6. Nf3 {[%clk 0:02:36]}  Nc6 {[%clk 0:02:52]} 7. a3 {[%clk 0:02:34]}  Bxc3 {[%clk 0:02:52]} 8. Bxc3 {[%clk 0:02:35]}  Qe7 {[%clk 0:02:47]} 9. d5 {[%clk 0:02:30]}  exd5 {[%clk 0:02:46]} 10. cxd5 {[%clk 0:02:30]}  Nb8 {[%clk 0:02:44]} 11. Bc4 {[%clk 0:02:22]}  O-O {[%clk 0:02:43]} 12. O-O {[%clk 0:02:22]}  a6 {[%clk 0:02:43]} 13. a4 {[%clk 0:02:21]}  Ne4 {[%clk 0:02:38]} 14. Nd2 {[%clk 0:02:09]}  Nxc3 {[%clk 0:02:36]} 15. bxc3 {[%clk 0:02:10]}  Nd7 {[%clk 0:02:35]} 16. Be2 {[%clk 0:02:07]}  Nf6 {[%clk 0:02:23]} 17. c4 {[%clk 0:02:06]}  Bd7 {[%clk 0:02:20]} 18. Qb3 {[%clk 0:02:05]}  Rfb8 {[%clk 0:02:20]} 19. Qb6 {[%clk 0:02:01]}  Bf5 {[%clk 0:02:09]} 20. Rfc1 {[%clk 0:01:54]}  h6 {[%clk 0:02:06]} 21. a5 {[%clk 0:01:48]}  Kf8 {[%clk 0:01:58]} 22. Ra3 {[%clk 0:01:47]}  Nd7 {[%clk 0:01:58]} 23. Qb2 {[%clk 0:01:47]}  b6 {[%clk 0:01:54]} 24. axb6 {[%clk 0:01:47]}  Rxb6 {[%clk 0:01:54]} 25. Rb3 {[%clk 0:01:47]}  Rab8 {[%clk 0:01:52]} 26. Qc3 {[%clk 0:01:43]}  Nf6 {[%clk 0:01:46]} 27. Ra1 {[%clk 0:01:41]}  Ne4 {[%clk 0:01:43]} 28. Nxe4 {[%clk 0:01:36]}  Rxb3 {[%clk 0:01:43]} 0-1


[Site "https://www.chess.com"]